bitfinex/quotes_SOLUSD_20260211
["timestamp","ask_amount","ask_price","bid_price","bid_amount"]
[1770797089257,0.79556383,81.004,80.971,0.55430316]
[1770797089766,0.79556383,81.019,80.981,0.55430316]
[1770797090456,0.79556383,81.019,80.991,0.55560466]
[1770797091067,0.79556383,81.019,80.993,0.55622535]
[1770797092245,0.79556383,81.019,80.992,12.34689845]
[1770797092446,0.74938561,81.009,80.979,0.5568501]
[1770797092646,0.74938561,81.009,80.972,0.5568501]
[1770797093163,0.74938561,80.999,80.973,12.34979561]
[1770797093366,0.74938561,80.999,80.968,12.3505415]
[1770797094268,0.74938561,80.998,80.968,12.3505415]
[1770797095369,0.74938561,80.996,80.961,12.35162609]
[1770797095549,0.74938561,80.979,80.957,12.35223346]
[1770797096654,0.74938561,80.979,80.961,12.35162609]
[1770797098967,0.74938561,80.979,80.954,12.35269412]
[1770797099265,0.74938561,80.979,80.955,0.56100751]
[1770797100069,0.74938561,80.989,80.955,0.56100751]
[1770797101881,40.94,80.992,80.971,0.56213132]
[1770797102054,3.75309684,80.99,80.956,12.35238895]
[1770797102246,0.74938561,80.989,80.956,12.35238895]
[1770797102876,0.74938561,80.979,80.95,12.35317615]
[1770797103165,0.74938561,80.969,80.94,0.66324101]
[1770797103377,0.74938561,80.969,80.941,0.56324101]
[1770797104650,0.74938561,80.969,80.943,0.56378599]
[1770797106075,0.74938561,80.968,80.94,0.1]
[1770797106254,0.74938561,80.959,80.94,0.1]
[1770797107164,0.74938561,80.968,80.941,0.56538981]
[1770797107770,0.74938561,80.976,80.941,0.56538981]
[1770797110653,3.75309684,80.98,80.941,0.56538981]
[1770797110858,0.74938561,80.983,80.951,0.56692954]
[1770797111074,40.98,80.984,80.951,0.56692954]
[1770797111276,0.74938561,80.983,80.96,4.32052623]
[1770797111974,0.74938561,80.983,80.96,0.56742939]
[1770797113381,0.74938561,80.983,80.961,12.35162609]
[1770797113766,0.74938561,80.996,80.97,3.75309684]
[1770797113964,0.74938561,80.996,80.971,0.56890668]
[1770797114363,0.74938561,80.996,80.962,0.56890668]
[1770797115379,0.74938561,80.996,80.964,0.56938155]
[1770797116076,0.74938561,80.994,80.964,0.56938155]
[1770797116274,0.74938561,80.989,80.962,12.35144655]
[1770797116464,0.74938561,80.989,80.957,12.35209742]
[1770797118077,0.74938561,80.987,80.951,12.3531519]
[1770797119186,0.74938561,80.987,80.952,0.57123882]
[1770797123990,0.74938561,80.987,80.954,0.57239264]
[1770797124195,0.77092283,80.985,80.95,3.75309684]
[1770797124492,0.77092283,80.979,80.948,12.35351537]
[1770797126982,0.77092283,80.977,80.948,12.35351537]
[1770797128492,0.77092283,80.975,80.941,12.92509295]
[1770797128682,0.77092283,80.975,80.942,0.57041486]
[1770797129898,0.77092283,80.975,80.944,0.56993718]
[1770797130196,0.77092283,80.973,80.944,0.56993718]
[1770797131079,0.77092283,80.973,80.945,12.92306447]
[1770797131282,0.77092283,80.973,80.946,0.5689969]
[1770797132598,0.77092283,80.971,80.943,0.56853605]
[1770797133089,0.77092283,80.969,80.943,0.56853605]
[1770797133682,0.77092283,80.969,80.944,12.3542202]
[1770797133900,0.77092283,80.969,80.945,0.56807979]
[1770797134403,0.77092283,80.976,80.951,0.56762641]
[1770797134600,41.16,80.983,80.951,0.56762641]
[1770797134601,0.77092283,80.982,80.951,0.56762641]
[1770797134783,0.77092283,80.988,80.961,0.56762641]
[1770797135189,0.77092283,81.004,80.971,0.56719213]
[1770797135382,0.77092283,81.025,80.991,0.56719213]
[1770797136209,0.77092283,81.025,81.0,3.75309684]
[1770797136399,0.77092283,81.025,81.001,0.56674789]
[1770797136580,0.77092283,81.032,81.001,0.56674789]
[1770797136782,0.77092283,81.032,81.011,0.56674789]
[1770797136989,12.34004171,81.038,81.02,3.75309684]
[1770797137305,0.77092283,81.038,81.015,0.56630853]
[1770797138206,0.77092283,81.038,81.004,12.34502343]
[1770797138998,0.77092283,81.038,81.008,12.3444285]
[1770797139204,0.77092283,81.038,81.01,3.75309684]
[1770797140406,0.77092283,81.037,81.011,0.56502118]
[1770797142897,0.77092283,81.035,81.01,3.75309684]
[1770797144314,0.77092283,81.079,81.021,0.56338291]
[1770797144603,0.77092283,81.078,81.06,3.75309684]
[1770797145184,12.33364989,81.079,81.06,3.75309684]
[1770797149112,0.77092283,81.078,81.06,3.75309684]
[1770797150600,0.77092283,81.078,81.05,3.75309684]
[1770797150801,0.77092283,81.078,81.039,12.33960909]
[1770797150994,0.7936239,81.069,81.04,3.75309684]
[1770797151194,0.7936239,81.067,81.04,3.75309684]
[1770797151598,0.7936239,81.067,81.05,3.75309684]
[1770797152107,0.7936239,81.067,81.04,3.75309684]
[1770797152895,0.7936239,81.067,81.04,3.74615078]
[1770797153408,0.7936239,81.059,81.03,3.74615078]
[1770797154897,0.7936239,81.059,81.02,3.74615078]
[1770797155098,43.17469716,81.066,81.01,3.74615078]
[1770797155099,0.7936239,81.039,81.01,3.74615078]
[1770797155417,0.7936239,81.037,81.01,3.74615078]
[1770797156917,0.7936239,81.044,81.012,0.55815198]
[1770797157121,0.7936239,81.059,81.031,0.55815198]
[1770797157704,0.7936239,81.054,81.024,0.55815198]
[1770797159121,0.7936239,81.052,81.024,0.55815198]
[1770797160012,0.7936239,81.052,81.03,3.74615078]
[1770797160213,0.7936239,81.058,81.031,0.55713919]
[1770797161099,0.7936239,81.071,81.041,0.5568081]
[1770797161616,0.7936239,81.071,81.032,43.19281271]
[1770797161617,0.7936239,81.071,81.05,4.30295888]
[1770797162916,12.33373391,81.079,81.051,0.55615648]
[1770797163124,12.33373391,81.079,81.053,0.55615648]
[1770797163500,0.9936239,81.08,81.061,0.55615648]
[1770797163704,0.2,81.08,81.061,0.55615648]
[1770797165321,0.2,81.08,81.063,0.5555175]
[1770797165635,0.7936239,81.079,81.06,3.74615078]
[1770797165813,0.7936239,81.079,81.056,0.5555175]
[1770797166129,0.7936239,81.094,81.071,0.55520608]
[1770797166299,0.7936239,81.094,81.04,3.74615078]
[1770797166300,0.7936239,81.102,81.08,3.74615078]
[1770797166501,0.7936239,81.102,81.081,0.55520608]
[1770797166900,0.2,81.11,81.09,3.74615078]
[1770797167301,0.7936239,81.109,81.09,3.74615078]
[1770797168801,0.2,81.11,81.091,0.55458923]
[1770797169001,0.2,81.11,81.09,16.0780336]
[1770797169201,0.7936239,81.109,81.085,12.33273452]
[1770797169424,0.7936239,81.109,81.089,12.33207674]
[1770797169725,0.7936239,81.109,81.09,3.74615078]
[1770797170117,0.2,81.11,81.092,0.55399864]
[1770797170306,0.7936239,81.143,81.104,0.55399864]
[1770797170506,0.7936239,81.143,81.112,0.55399864]
[1770797170822,0.7936239,81.143,81.11,4.29986425]
[1770797171016,0.7936239,81.142,81.11,4.29986425]
[1770797171230,0.7936239,81.139,81.103,0.55371347]
[1770797171425,0.7936239,81.139,81.1,3.74615078]
[1770797171619,0.7936239,81.129,81.087,12.33240634]
[1770797171927,0.7936239,81.119,81.094,12.3313677]
[1770797172111,0.7936239,81.119,81.09,3.74615078]
[1770797172319,0.7936239,81.119,81.1,3.74615078]
[1770797172618,0.7936239,81.119,81.101,12.33019556]
[1770797172824,0.7936239,81.119,81.089,46.88]
[1770797172825,0.7936239,81.119,81.09,3.74615078]
[1770797173130,0.7936239,81.119,81.095,12.33118566]
[1770797173329,0.7936239,81.117,81.09,3.74615078]
[1770797173506,3.74615078,81.11,81.078,12.33378284]
[1770797173827,0.7936239,81.109,81.078,12.33378284]
[1770797174425,0.7936239,81.107,81.072,0.55286461]
[1770797175223,0.7936239,81.107,81.064,46.88]
[1770797175224,0.7936239,81.099,81.064,59.21585796]
[1770797175622,0.7936239,81.099,81.072,0.55258965]
[1770797176812,0.7936239,81.097,81.07,3.74615078]
[1770797177022,0.7936239,81.097,81.07,10.02633829]
[1770797177218,0.7936239,81.097,81.064,46.88]
[1770797177840,0.7936239,81.079,81.05,10.02633829]
[1770797178018,0.7936239,81.079,81.048,12.3382971]
[1770797179835,10.02633829,81.09,81.051,0.55124588]
[1770797180137,10.02633829,81.09,81.061,0.55124588]
[1770797180138,0.7936239,81.089,81.061,0.55124588]
[1770797180838,41.0,81.094,81.07,10.02633829]
[1770797181135,0.80009305,81.095,81.071,0.55071687]
[1770797182732,0.80009305,81.095,81.07,22.36123871]
[1770797183441,0.80009305,81.095,81.042,5.13032502]
[1770797183442,0.80009305,81.095,81.08,10.02633829]
[1770797183615,0.80009305,81.109,81.08,10.02633829]
[1770797183810,0.80009305,81.099,81.07,10.02633829]
[1770797184009,0.80009305,81.099,81.071,12.33481187]
[1770797184819,0.72610283,81.097,81.062,46.9]
[1770797185736,0.72610283,81.089,81.062,46.9]
[1770797185934,0.72610283,81.089,81.042,5.13032502]
[1770797185935,0.72610283,81.079,81.05,10.02633829]
[1770797186121,0.72610283,81.079,81.045,0.53984116]
[1770797186840,0.72610283,81.078,81.05,10.02633829]
[1770797187221,0.72610283,81.078,81.051,0.53779283]
[1770797188036,0.72610283,81.078,81.06,10.02633829]
[1770797188343,0.72610283,81.084,81.06,10.02633829]
[1770797188827,0.72610283,81.082,81.06,10.02633829]
[1770797189223,0.72610283,81.082,81.06,10.56010335]
[1770797190345,0.72610283,81.08,81.052,12.86946488]
[1770797190522,0.72610283,81.08,81.053,0.53177601]
[1770797192644,12.33364989,81.079,81.053,0.53177601]
[1770797192947,0.72610283,81.078,81.053,0.53177601]
[1770797193736,0.72610283,81.076,81.044,46.96]
[1770797194734,0.72610283,81.076,81.047,12.33847228]
[1770797195254,0.72610283,81.076,81.047,12.86068046]
[1770797195449,0.72610283,81.069,81.044,46.96]
[1770797195648,0.72610283,81.059,81.025,0.52220818]
[1770797195842,0.72610283,81.057,81.02,10.02633829]
[1770797196039,0.72610283,81.057,81.016,47.50036356]
[1770797196040,0.72610283,81.039,81.011,12.34391872]
[1770797196439,0.72610283,81.048,81.025,12.34178049]
[1770797196750,0.72610283,81.048,81.02,10.02633829]
[1770797196947,0.72610283,81.048,81.025,12.34185481]
[1770797197336,0.72610283,81.057,81.03,3.74760663]
[1770797198552,0.72610283,81.055,81.031,12.34095593]
[1770797201056,12.33745404,81.054,81.02,3.74760663]
[1770797201266,0.72610283,81.039,81.018,47.0]
[1770797201562,0.72610283,81.039,81.005,31.37352143]
[1770797201563,0.72610283,81.039,81.011,12.34388044]
[1770797201962,0.72610283,81.029,81.001,12.34538957]
[1770797202259,0.72610283,81.019,80.983,0.50971875]
[1770797202447,0.72610283,81.019,80.989,12.3472445]
[1770797202648,0.72610283,81.018,80.984,12.34811814]
[1770797203350,0.72610283,81.009,80.979,12.34880886]
[1770797203665,0.72610283,81.018,80.99,3.74760663]
[1770797203870,0.72610283,81.017,80.985,0.50800851]
[1770797204363,0.72610283,81.017,80.99,3.74760663]
[1770797206265,0.72610283,81.017,80.986,12.85082318]
[1770797206466,0.72610283,81.017,80.991,0.50300998]
[1770797206768,0.72610283,81.039,81.001,0.50300998]
[1770797206971,0.72610283,81.049,81.02,10.0397322]
[1770797207347,0.72610283,81.049,81.021,0.50138465]
[1770797208169,0.72610283,81.049,81.022,12.34232677]
[1770797208350,0.72610283,81.039,81.009,12.34425752]
[1770797208859,0.72610283,81.029,81.002,47.04]
[1770797209060,0.72610283,81.029,81.004,12.34498874]
[1770797209459,0.72610283,81.029,81.003,12.34517943]
[1770797213172,0.77318089,81.039,81.01,10.04329547]
[1770797213354,0.77318089,81.039,81.011,0.4904918]
[1770797214379,0.77318089,81.039,81.012,12.34385029]
[1770797214580,41.1,81.043,81.02,10.53230355]
[1770797214777,0.77318089,81.075,81.031,0.48900808]
[1770797214968,0.77318089,81.089,81.051,0.48754192]
[1770797215272,0.77318089,81.089,81.061,0.48754192]
[1770797216279,0.77318089,81.089,81.062,12.33623646]
[1770797216975,0.77318089,81.089,81.07,10.02763522]
[1770797217787,0.77318089,81.087,81.052,59.41765348]
[1770797218090,0.77318089,81.087,81.062,12.33623646]
[1770797218657,0.77318089,81.087,81.07,10.02763522]
[1770797218874,0.77318089,81.087,81.062,12.33623646]
[1770797220590,0.77318089,81.085,81.052,59.41766517]
[1770797221070,0.77318089,81.085,81.056,12.33711932]
[1770797221579,0.77318089,81.085,81.052,47.08]
[1770797222365,0.77318089,81.085,81.057,12.33698556]
[1770797222560,0.77318089,81.085,81.07,10.02763522]
[1770797223782,0.77318089,81.085,81.061,12.33638864]
[1770797224073,0.77318089,81.083,81.05,22.36562443]
[1770797224480,0.77318089,81.083,81.05,10.02763522]
[1770797224690,12.33319355,81.082,81.05,10.02763522]
[1770797224876,0.77318089,81.079,81.04,10.02763522]
[1770797225073,0.77318089,81.079,81.041,12.3394286]
[1770797225578,0.77318089,81.077,81.041,12.3394286]
[1770797225786,0.77318089,81.069,81.04,10.02763522]
[1770797225969,0.77318089,81.069,81.05,10.02763522]
[1770797226167,0.77318089,81.069,81.04,10.50140654]
[1770797226974,0.77318089,81.078,81.06,10.02763522]
[1770797227193,0.77318089,81.078,81.051,0.4711955]
[1770797228591,0.77318089,81.078,81.06,10.02763522]
[1770797228798,0.77318089,81.085,81.06,10.49756769]
[1770797229093,0.77318089,81.094,81.07,10.02763522]
[1770797229592,0.77318089,81.1,81.08,10.02763522]
[1770797230177,0.77318089,81.1,81.069,0.4674383]
[1770797230373,10.02763522,81.1,81.062,0.4674383]
[1770797230579,0.77318089,81.099,81.062,0.4674383]
[1770797230983,0.77318089,81.089,81.055,47.16]
[1770797231307,0.77318089,81.089,81.05,10.02763522]
[1770797231705,0.77318089,81.089,81.013,54.73544769]
[1770797231706,0.77318089,81.069,80.981,102.9]
[1770797231878,0.77318089,81.069,80.94,52.54900174]
[1770797231879,0.77318089,81.029,80.99,10.4938545]
[1770797232078,0.77318089,81.029,80.989,12.34735581]
[1770797232079,0.77318089,81.009,80.989,12.34735581]
[1770797232798,0.77318089,81.019,80.982,12.34838246]
[1770797232999,0.77318089,81.009,80.977,12.34910398]
[1770797233235,0.77318089,80.999,80.966,47.2]
[1770797233384,0.77318089,80.999,80.965,12.35087867]
[1770797233703,0.77318089,80.989,80.965,12.35087867]
[1770797234980,0.77318089,80.989,80.955,12.35251772]
[1770797235404,0.77318089,80.987,80.96,10.02763522]
[1770797236086,0.77318089,80.987,80.961,12.35162609]
[1770797236287,0.77318089,80.987,80.96,10.02763522]
[1770797236486,0.77318089,80.987,80.961,12.35162609]
[1770797237604,0.77318089,81.011,80.98,10.02763522]
[1770797237791,0.77318089,81.009,80.98,10.02763522]
[1770797239108,0.77318089,81.007,80.971,0.45921911]
[1770797239401,0.77318089,81.007,80.981,12.34857559]
[1770797239788,0.77318089,81.007,80.98,10.02763522]
[1770797240008,0.77318089,81.007,80.98,12.34865654]
[1770797240592,0.77318089,81.007,80.972,12.34991349]
[1770797240903,0.70095798,80.997,80.97,10.02763522]
[1770797241106,0.70095798,80.997,80.973,12.34977381]
[1770797241808,0.70095798,80.997,80.97,10.02763522]
[1770797241997,10.02763522,81.0,80.96,10.02763522]
[1770797241998,0.70095798,80.995,80.96,10.02763522]
[1770797242490,0.70095798,80.995,80.962,12.35140088]
[1770797243612,0.70095798,80.995,80.961,0.4491674]
[1770797243909,0.70095798,80.995,80.97,10.02763522]
[1770797244509,0.69293784,80.993,80.961,12.35162609]
[1770797244806,0.69293784,80.989,80.961,12.35162609]
[1770797245798,0.69293784,80.989,80.953,12.35284671]
[1770797246410,0.69293784,80.989,80.96,10.47168146]
[1770797246615,41.91293784,80.996,80.97,10.02763522]
[1770797247110,12.34644113,80.995,80.97,10.02763522]
[1770797247313,13.03937897,80.995,80.97,10.02763522]
[1770797248896,0.69293784,80.995,80.971,12.35010065]
[1770797249701,0.69293784,80.989,80.963,12.35126083]
[1770797250116,0.69293784,80.978,80.944,0.43749624]
[1770797250306,0.69293784,80.978,80.945,12.35406757]
[1770797250513,0.69293784,80.969,80.94,12.4548172]
[1770797252322,0.69293784,80.967,80.94,0.1]
[1770797253028,0.63414285,80.967,80.94,0.1]
[1770797253596,10.02763522,80.95,80.93,0.1]
[1770797253899,10.02763522,80.94,80.914,12.47751702]
[1770797254099,41.32,80.945,80.918,12.35810934]
[1770797254306,41.32,80.945,80.918,0.69023038]
[1770797254307,41.34,80.945,80.918,0.69023038]
[1770797254720,12.3542202,80.944,80.918,0.69023038]
[1770797255927,0.69293784,80.944,80.918,0.69023038]
[1770797256424,0.69293784,80.939,80.914,0.11886884]
[1770797256719,41.34,80.95,80.93,10.71524565]
[1770797257222,0.69293784,80.949,80.922,0.68631906]
[1770797258116,0.69293784,80.948,80.919,12.35803704]
[1770797258505,0.69293784,80.929,80.914,0.11886884]
[1770797262210,0.69293784,80.927,80.911,12.35925893]
[1770797262621,0.69293784,80.927,80.91,0.2]
[1770797263511,0.69293784,80.925,80.896,12.36152477]
[1770797263704,10.02763522,80.92,80.896,12.36152477]
[1770797263910,0.69293784,80.919,80.891,0.70115402]
[1770797264103,0.69293784,80.919,80.9,12.36084465]
[1770797264624,41.44,80.925,80.9,12.36084465]
[1770797264926,0.69293784,80.937,80.911,0.70115402]
[1770797265226,0.69293784,80.937,80.912,0.70115402]
[1770797265722,12.35544133,80.936,80.912,0.70115402]
[1770797265904,12.35544133,80.936,80.898,30.90294299]
[1770797265905,0.69293784,80.934,80.905,0.70115402]
[1770797267215,0.69293784,80.919,80.895,12.36168785]
[1770797267426,0.69293784,80.919,80.899,12.36108105]
[1770797267727,0.69293784,80.936,80.904,0.70115402]
[1770797269038,12.3553181,80.937,80.9,10.02763522]
[1770797269039,0.69293784,80.929,80.9,10.02763522]
[1770797269209,0.69293784,80.927,80.896,0.70115402]
[1770797269517,12.35666271,80.928,80.89,0.2]
[1770797269518,0.69293784,80.919,80.89,0.2]
[1770797270020,0.69293784,80.899,80.89,1e-08]
[1770797271210,0.69698394,80.897,80.852,0.71442808]
[1770797271534,0.69698394,80.879,80.846,12.36916786]
[1770797271826,0.69698394,80.879,80.838,0.71442808]
[1770797272023,10.02763522,80.86,80.836,12.3706855]
[1770797272328,0.69698394,80.859,80.83,0.71442808]
[1770797272711,0.69698394,80.839,80.79,10.7420633]
[1770797272911,17.86607263,80.876,80.79,0.71442808]
[1770797272912,0.69698394,80.819,80.79,0.71442808]
[1770797273313,5.13032502,80.863,80.794,12.37706106]
[1770797273314,12.37231476,80.826,80.794,12.37706106]
[1770797273632,10.0973256,80.82,80.794,12.37706106]
[1770797273838,41.56,80.827,80.801,0.71442808]
[1770797274140,0.69698394,80.834,80.81,10.0973256]
[1770797274337,0.69698394,80.829,80.801,0.71442808]
[1770797274515,0.69698394,80.829,80.799,6.32984651]
[1770797274824,10.79430954,80.82,80.799,6.32984651]
[1770797275430,0.69698394,80.82,80.799,6.32984651]
[1770797275926,10.0973256,80.81,80.799,6.32984651]
[1770797276130,10.0973256,80.82,80.799,6.32984651]
[1770797276436,0.69698394,80.825,80.799,6.32984651]
[1770797277017,10.0973256,80.85,80.811,0.71442808]
[1770797277336,0.69698394,80.848,80.811,0.71442808]
[1770797277513,0.69698394,80.848,80.82,10.0973256]
[1770797277827,0.69698394,80.839,80.801,0.71442808]
[1770797278010,0.69698394,80.839,80.806,12.37519735]
[1770797278207,0.69698394,80.839,80.81,10.0973256]
[1770797278406,0.69698394,80.839,80.806,12.37519735]
[1770797279010,12.37041985,80.838,80.806,12.37519735]
[1770797279211,0.69698394,80.837,80.801,0.71442808]
[1770797279410,0.69698394,80.829,80.801,0.71442808]
[1770797279829,0.69698394,80.819,80.799,6.32984651]
[1770797280008,10.0973256,80.82,80.799,6.32984651]
[1770797280212,10.0973256,80.83,80.801,0.71442808]
[1770797280520,0.69698394,80.837,80.8,10.0973256]
[1770797280738,0.69698394,80.819,80.799,6.32984651]
[1770797281047,13.06893643,80.828,80.8,0.71442808]
[1770797281208,0.69698394,80.848,80.811,0.71442808]
[1770797281512,0.69698394,80.846,80.811,0.71442808]
[1770797281714,0.69698394,80.839,80.811,0.71442808]
[1770797282117,0.69698394,80.846,80.811,0.71442808]
[1770797282313,0.69698394,80.819,80.799,6.32984651]
[1770797282523,12.36904275,80.847,80.77,10.0973256]
[1770797282524,0.69698394,80.809,80.77,10.0973256]
[1770797282733,0.69698394,80.799,80.768,0.71442808]
[1770797283045,0.69698394,80.799,80.773,12.38034884]
[1770797283221,0.69698394,80.799,80.774,0.71442808]
[1770797283626,12.37373689,80.817,80.781,0.71442808]
[1770797283855,12.37373689,80.817,80.769,0.71442808]
[1770797283856,0.69698394,80.799,80.769,0.71442808]
[1770797284047,0.69698394,80.799,80.77,10.0973256]
[1770797284723,0.69698394,80.809,80.772,0.71442808]
[1770797285223,13.0718484,80.809,80.774,0.71442808]
[1770797285924,0.69698394,80.808,80.774,0.71442808]
[1770797286723,12.37486446,80.809,80.739,0.7334901]
[1770797286724,0.69698394,80.779,80.739,0.7334901]
[1770797286926,41.64,80.782,80.74,10.1098066]
[1770797287125,12.37945505,80.779,80.742,12.38508381]
[1770797287325,12.37945505,80.779,80.75,10.1098066]
[1770797287530,12.37836984,80.787,80.751,0.7334901]
[1770797288041,10.1098066,80.78,80.751,0.7334901]
[1770797288350,10.1098066,80.78,80.75,0.7334901]
[1770797288524,43.32394276,80.787,80.709,0.7334901]
[1770797288525,10.1098066,80.76,80.709,0.7334901]
[1770797288729,41.74,80.765,80.733,0.7334901]
[1770797289048,41.74,80.767,80.733,0.7334901]
[1770797289230,49.4988244,80.81,80.741,0.7334901]
[1770797289430,10.1098066,80.77,80.73,0.7334901]
[1770797289637,10.1098066,80.76,80.721,0.7334901]
[1770797290345,41.76,80.763,80.73,10.1098066]
[1770797290640,41.76,80.763,80.735,0.7334901]
[1770797290840,10.1098066,80.76,80.735,0.7334901]
[1770797291020,41.76,80.763,80.741,0.7334901]
[1770797291225,5.13032502,80.793,80.741,0.7334901]
[1770797291226,12.38206087,80.762,80.741,0.7334901]
[1770797291547,10.1098066,80.75,80.723,0.7334901]
[1770797291750,10.1098066,80.75,80.711,0.7334901]
[1770797291930,10.1098066,80.75,80.714,0.7334901]
[1770797292246,10.1098066,80.75,80.692,47.4]
[1770797292247,10.1098066,80.72,80.667,0.7334901]
[1770797292427,10.1098066,80.72,80.662,6.45753387]
[1770797292428,10.1098066,80.7,80.678,0.7334901]
[1770797292625,10.1098066,80.72,80.683,0.7334901]
[1770797292845,41.8,80.722,80.691,0.7334901]
[1770797293142,10.1098066,80.73,80.692,0.7334901]
[1770797293358,10.1098066,80.72,80.692,0.7334901]
[1770797293529,10.1098066,80.72,80.664,47.4]
[1770797293530,41.8,80.724,80.701,0.7334901]
[1770797293725,10.1098066,80.74,80.701,0.7334901]
[1770797293936,43.3404329,80.756,80.721,0.7334901]
[1770797294139,10.1098066,80.75,80.721,0.7334901]
[1770797294337,43.3404329,80.756,80.721,0.7334901]
[1770797294943,12.38298083,80.756,80.721,0.7334901]
[1770797295247,12.38298083,80.756,80.723,0.7334901]
[1770797295445,12.38298083,80.756,80.731,0.7334901]
[1770797295636,54.20283816,80.757,80.731,0.7334901]
[1770797296033,41.82,80.757,80.731,0.7334901]
[1770797296234,12.37818346,80.788,80.75,10.1098066]
[1770797296449,12.37818346,80.788,80.722,123.88196525]
[1770797296450,10.1098066,80.8,80.761,0.7334901]
[1770797297034,10.1098066,80.8,80.735,47.4]
[1770797297035,10.1098066,80.79,80.751,0.7334901]
[1770797297233,10.1098066,80.8,80.761,0.7334901]
[1770797297856,12.37577812,80.803,80.771,0.7334901]
[1770797298151,10.1098066,80.79,80.75,0.7334901]
[1770797298347,10.1098066,80.79,80.751,0.7334901]
[1770797299140,41.86,80.792,80.77,10.1098066]
[1770797299340,72.81944531,80.803,80.771,0.7334901]
[1770797299542,10.1098066,80.8,80.76,10.8432967]
[1770797299947,72.81944531,80.803,80.761,0.7334901]
[1770797300737,10.1098066,80.8,80.761,0.7334901]
[1770797301559,10.1098066,80.79,80.751,0.7334901]
[1770797301750,41.92,80.789,80.751,0.7334901]
[1770797302147,43.31736778,80.799,80.77,10.1098066]
[1770797302364,43.31736778,80.799,80.763,0.7334901]
[1770797302365,41.92,80.793,80.763,0.7334901]
[1770797303157,10.1098066,80.78,80.735,0.7334901]
[1770797303659,43.32809269,80.779,80.741,0.7334901]
[1770797304362,41.92,80.778,80.741,0.7334901]
[1770797304843,41.92,80.778,80.761,0.7334901]
[1770797305444,41.92,80.778,80.743,0.7334901]
[1770797305747,12.37976156,80.777,80.744,12.38482116]
[1770797305949,12.37976156,80.777,80.751,0.7334901]
[1770797306368,41.96,80.78,80.751,0.7334901]
[1770797306660,41.96,80.78,80.76,10.1098066]
[1770797306871,41.96,80.78,80.761,0.7334901]
[1770797307459,41.96,80.78,80.752,0.7334901]
[1770797307664,10.1098066,80.77,80.734,0.7334901]
[1770797307842,85.31345713,80.769,80.734,0.7334901]
[1770797308361,41.98,80.768,80.734,0.7334901]
[1770797310061,43.33453019,80.767,80.734,0.7334901]
[1770797310961,42.02,80.766,80.741,0.7334901]
[1770797311344,54.40129434,80.767,80.741,0.7334901]
[1770797311546,12.38129434,80.767,80.741,0.7334901]
[1770797311752,42.02,80.766,80.741,0.7334901]
[1770797311957,12.38160094,80.765,80.741,0.7334901]
[1770797312565,42.02,80.764,80.741,0.7334901]
[1770797313268,42.02,80.764,80.731,0.7334901]
[1770797314148,43.33667644,80.763,80.731,0.7334901]
[1770797314564,12.38190755,80.763,80.732,0.7334901]
[1770797314772,42.08,80.762,80.732,0.7334901]
[1770797315668,42.08,80.762,80.658,49.59154348]
[1770797315868,10.1098066,80.76,80.711,0.7334901]
[1770797316059,10.1098066,80.76,80.721,0.7334901]
[1770797316258,12.38252083,80.759,80.721,0.7334901]
[1770797316567,43.33882291,80.759,80.723,0.7334901]
[1770797317371,10.1098066,80.75,80.723,0.7334901]
[1770797317775,42.12,80.749,80.723,0.7334901]
[1770797318355,12.38420765,80.748,80.723,0.7334901]
[1770797319366,10.1098066,80.74,80.7,0.7334901]
[1770797319575,43.34472679,80.748,80.711,0.7334901]
[1770797319576,42.14,80.739,80.711,0.7334901]
[1770797320273,43.34472679,80.748,80.711,0.7334901]
[1770797320470,42.16,80.738,80.711,0.7334901]
[1770797320672,12.38420765,80.748,80.72,10.1098066]
[1770797320875,12.38420765,80.748,80.731,0.7334901]
[1770797321173,12.38420765,80.748,80.721,0.7334901]
[1770797322456,30.96013572,80.749,80.721,0.7334901]
[1770797323068,42.14,80.755,80.731,0.7334901]
[1770797323260,12.38283051,80.757,80.731,0.7334901]
[1770797323456,42.18,80.756,80.731,0.7334901]
[1770797324561,42.18,80.756,80.741,0.7334901]
[1770797325459,42.2,80.769,80.755,0.7334901]
[1770797325656,42.2,80.777,80.751,0.66710369]
[1770797325862,42.2,80.777,80.761,0.66710369]
[1770797326076,42.24,80.799,80.771,0.66710369]
[1770797326463,54.61653963,80.799,80.771,0.66710369]
[1770797327056,42.24,80.798,80.771,0.66710369]
[1770797327371,12.37521372,80.807,80.781,0.66710369]
[1770797327570,54.63521372,80.807,80.781,0.66710369]
[1770797328088,42.26,80.807,80.781,0.66710369]
[1770797328380,42.26,80.807,80.783,0.66710369]
[1770797328582,42.26,80.807,80.752,46.92]
[1770797328583,0.67842208,80.805,80.753,0.66710369]
[1770797328757,0.67842208,80.805,80.77,10.1098066]
[1770797329961,0.67842208,80.805,80.77,10.77691029]
[1770797330182,13.08750421,80.804,80.771,0.72336827]
[1770797330393,42.28,80.803,80.781,0.72336827]
[1770797330565,42.28,80.803,80.78,10.1098066]
[1770797330983,42.3,80.804,80.78,10.1098066]